[Event "Superbet Blitz Poland 2023"]
[Site "Warsaw"]
[Date "2023.05.24"]
[Round "4"]
[White "Shevchenko, Kirill"]
[Black "Duda, Jan-Krzysztof"]
[Result "1/2-1/2"]
[ECO "A35"]
[WhiteElo "2684"]
[BlackElo "2724"]
[Annotator "TA"]
[PlyCount "116"]
[EventDate "2023.05.24"]
[EventType "tourn"]
[EventCountry "POL"]
[SourceTitle "playchess.com"]
[Source "ChessBase"]
[SourceQuality "1"]
[TimeControl "300+2"]

{[%evp 12,115,7,-10,0,0,0,0,-2,-6,-10,-10,45,45,60,59,65,70,76,69,69,50,64,6,11,10,0,9,10,2,6,12,16,0,13,17,133,123,115,113,917,381,428,198,186,186,207,186,192,199,150,133,139,114,141,121,121,114,114,20,87,93,114,101,114,60,121,121,121,121,121,121,135,135,135,135,135,135,135,121,121,121,121,121,121,121,121,121,121,121,121,121,121,121,135,121,121,121,121,121,143,135,147,0,137,0]} 1. c4 {[%emt 0:00:01]} c5 {[%emt 0:00:03]} 2. Nf3 {[%emt 0:00:03]} Nc6 {[%emt 0:00:01]} 3. Nc3 {[%emt 0:00:05]} g6 {[%emt 0:00:11]} 4. d4 {[%emt 0:00:15]} cxd4 {[%emt 0:00:02]} 5. Nxd4 {[%emt 0:00:01]} Bg7 {[%emt 0:00:02]} 6. Nxc6 {[%emt 0:00:01]} bxc6 {[%emt 0:00:06]} 7. g3 {[%emt 0:00:02]} Rb8 {[%emt 0:00:20] A35: Symmetrical English: 2 Nc3 Nc6 3 Nf3.} 8. Bg2 {[%emt 0:00:04]} Qa5 {[%emt 0:00:25]} 9. O-O {[%emt 0:00:21]} Ba6 {[%emt 0:00:02]} 10. Qd3 {[%emt 0:00:03] [#]} d5 $1 {[%emt 0:00:43]} 11. Qc2 {[%emt 0:00:02] Hoping for Bd2.} Bxc4 {[%emt 0:01:02]} (11... dxc4 12. Bxc6+ Kf8 13. Rd1 $16) (11... Bxc3 $1 $11 12. Qxc3 Qxc3 13. bxc3 Bxc4) 12. Bd2 $1 $14 {[%emt 0:00:00] Threatens to win with b3.} Qb6 {[%emt 0:00:17]} 13. b3 {[%emt 0:00:27]} Bb5 {[%emt 0:00:01]} 14. Rac1 {[%emt 0:00:07]} Nf6 {[%emt 0:00:02] [#]} 15. Bf4 $146 {[%emt 0:00:35][%cal Oc3b5] Nxb5! would be deadly.} ({Predecessor:} 15. Be3 Qb7 16. a4 Ba6 17. Na2 O-O 18. Qxc6 Bxe2 19. Rfe1 Bg4 20. b4 Bd7 21. Qxb7 Rxb7 {1-0 Matorin,E (2283)-Novikova,M (2067) Kiev Independence Cup-A 6th 2006 (1)}) 15... Ra8 {[%emt 0:00:09]} 16. Nxb5 {[%emt 0:01:02]} cxb5 {[%emt 0:00:01]} 17. e4 {[%emt 0:00:00]} (17. Rfd1 $1 $14) 17... dxe4 {[%emt 0:00:19]} 18. Bxe4 {[%emt 0:00:02]} Nxe4 {[%emt 0:00:02]} 19. Qxe4 {[%emt 0:00:01]} O-O {[%emt 0:00:03][%cal Bh8f8,Bf8e8,Be8e2][%mdl 32]} 20. Qxe7 $40 {[%emt 0:00:04][%mdl 128] White has some attack.} Rfe8 {[%emt 0:00:10]} 21. Qg5 {[%emt 0:00:22]} (21. Qc5 {simplifies} Qxc5 22. Rxc5 Re2 23. Rxb5 Rxa2 24. Be3) 21... Re2 {[%emt 0:00:20]} 22. Be3 {[%emt 0:00:05]} Qb7 {[%emt 0:00:14]} 23. Rfd1 {[%emt 0:00:06] Black must now prevent Qf4.} h6 {[%emt 0:00:17] [#]} (23... Qe4 $11 {keeps the balance.}) 24. Qg4 $1 $16 {[%emt 0:00:01]} Rxa2 {[%emt 0:00:15]} 25. Rd7 {[%emt 0:00:01]} Qa6 {[%emt 0:00:10][%mdl 8192]} (25... h5 $16) 26. Qf3 {[%emt 0:00:55]} (26. Rxf7 $142 Qd6 27. Rcc7 Ra1+ 28. Kg2 Qd5+ 29. Kh3 Qxf7 30. Rxf7 Kxf7 31. Qf3+ Kg8 32. Qxa8+ Kh7 33. Qb7) 26... Rf8 $18 {[%emt 0:00:03]} 27. Rxa7 {[%emt 0:00:03]} ({Not} 27. Bxa7 Qe6 28. Rb7 Rd2 $14) (27. Rc6 $142 Qa3 28. Bc5 Ra1+ 29. Rd1 Rxd1+ 30. Qxd1) 27... Qxa7 {[%emt 0:00:07]} 28. Bxa7 {[%emt 0:00:01]} Rxa7 {[%emt 0:00:01]} 29. Qc6 {[%emt 0:00:06]} Rb8 {[%emt 0:00:11]} 30. Qd6 {[%emt 0:00:04] Repels b4} Rab7 {[%emt 0:00:05]} 31. g4 {[%emt 0:00:11]} b4 {[%emt 0:00:02]} 32. h4 {[%emt 0:00:04][%cal Bh2h4,Bh4h5][%mdl 32]} Bf8 {[%emt 0:00:01]} 33. Qf4 {[%emt 0:00:04] White has more active pieces.} Rd8 {[%emt 0:00:02]} 34. Rc6 {[%emt 0:00:15] aiming for Qc4.} Rbd7 {[%emt 0:00:05]} 35. Qc4 {[%emt 0:00:02]} ({Better is} 35. Rc4 $16) 35... Rd4 {[%emt 0:00:07]} (35... Rd1+ $11 36. Kg2 R8d4 37. Rxg6+ Bg7 38. Qc8+ Rd8 39. Rxg7+ (39. Qc4 R1d4 $11) 39... Kxg7) 36. Qe2 $16 {[%emt 0:00:09]} ({Don't play} 36. Rxg6+ $6 Bg7 37. Rxg7+ Kxg7 $11) 36... Rd3 {[%emt 0:00:05]} 37. h5 {[%emt 0:00:06]} g5 {[%emt 0:00:04]} 38. Rc7 {[%emt 0:00:00]} (38. Qe5 $16) 38... R3d7 {[%emt 0:00:03]} (38... Rxb3 $14 39. Rxf7 Rb1+ 40. Kg2 Kxf7 41. Qa2+ b3 42. Qxb1 Rb8) 39. Rxd7 {[%emt 0:00:15]} Rxd7 {[%emt 0:00:01][%mdl 4096] Endgame KQ-KRB} 40. Qc4 {[%emt 0:00:00]} Rd8 {[%emt 0:00:04]} 41. Kg2 {[%emt 0:00:01]} Re8 {[%emt 0:00:01]} 42. f4 {[%emt 0:00:05]} gxf4 {[%emt 0:00:02]} 43. Qxf4 {[%emt 0:00:01]} Re2+ {[%emt 0:00:01]} 44. Kf3 {[%emt 0:00:02]} Re6 {[%emt 0:00:01]} 45. Qc4 {[%emt 0:00:01]} Be7 {[%emt 0:00:02]} 46. Kg3 {[%emt 0:00:09]} Kg7 {[%emt 0:00:01]} 47. Qd4+ {[%emt 0:00:01]} Kg8 {[%emt 0:00:01]} 48. Qd7 {[%emt 0:00:03]} Kg7 {[%emt 0:00:07]} 49. Kg2 {[%emt 0:00:01]} Re2+ {[%emt 0:00:01]} 50. Kf3 {[%emt 0:00:01]} Re6 {[%emt 0:00:01]} 51. Qd4+ {[%emt 0:00:08]} Kg8 {[%emt 0:00:02]} 52. Kg2 {[%emt 0:00:02]} Bf8 {[%emt 0:00:04]} 53. Qc4 {[%emt 0:00:02]} Be7 {[%emt 0:00:01]} 54. Qb5 {[%emt 0:00:01]} Kg7 {[%emt 0:00:02]} 55. Kf3 {[%emt 0:00:02]} Rf6+ {[%emt 0:00:01]} 56. Ke4 {[%emt 0:00:02]} Re6+ {[%emt 0:00:01]} 57. Kf3 {[%emt 0:00:01]} Rf6+ $1 {[%emt 0:00:01]} 58. Kg2 {[%emt 0:00:00]} Re6 {[%emt 0:00:03] Weighted Error Value: White=0.26 (precise) /Black=0.13 (very precise)} 1/2-1/2

[Event "Superbet Blitz Poland 2023"]
[Site "Warsaw"]
[Date "2023.05.24"]
[Round "4"]
[White "Wojtaszek, Radoslaw"]
[Black "Carlsen, Magnus"]
[Result "1/2-1/2"]
[ECO "A43"]
[WhiteElo "2670"]
[BlackElo "2853"]
[Annotator "TA"]
[PlyCount "99"]
[EventDate "2023.05.24"]
[EventType "tourn"]
[EventCountry "POL"]
[SourceTitle "playchess.com"]
[Source "ChessBase"]
[SourceQuality "1"]
[TimeControl "300+2"]

{[%evp 10,99,77,70,88,41,53,0,0,-12,22,16,21,-21,-5,-19,7,0,0,0,0,0,0,0,0,0,0,0,14,-14,29,29,30,30,30,17,17,0,35,29,35,35,35,18,19,25,41,0,0,0,8,0,0,0,0,0,0,0,0,0,0,0,0,0,0,0,0,0,0,0,7,0,0,0,0,0,0,0,0,0,0,0,0,0,0,0,0,0,0,0,0,0]} 1. d4 {[%emt 0:00:01]} g6 {[%emt 0:00:02]} 2. c4 {[%emt 0:00:02]} Bg7 {[%emt 0:00:01]} 3. e4 {[%emt 0:00:01]} d6 {[%emt 0:00:02]} 4. Nc3 {[%emt 0:00:02]} c5 {[%emt 0:00:01]} (4... e5 5. Nf3 Nc6 6. Bg5 f6 7. Be3 Nh6 8. h3 Nf7 9. c5 dxc5 10. dxe5 Nfxe5 11. Qxd8+ Nxd8 12. Nxe5 fxe5 13. Bxc5 Ne6 14. Be3 Nd4 15. O-O-O Be6 {0-1 Wojtaszek,R (2696)-Carlsen,M (2861) Titled Tuesday intern op 27th Sep Early blitz 2022 (9)}) 5. d5 {[%emt 0:00:02]} Bxc3+ {[%emt 0:00:02]} 6. bxc3 {[%emt 0:00:02]} e5 {[%emt 0:00:01] A43: Schmid Benoni.} 7. dxe6 {[%emt 0:00:18]} (7. Rb1 $16) 7... Bxe6 {[%emt 0:00:04]} 8. Bf4 {[%emt 0:00:01]} ({White should try} 8. Bd3 $14) 8... Nc6 {[%emt 0:00:11]} 9. Nf3 {[%emt 0:00:13] [#]} Qa5 $146 {[%emt 0:00:19]} (9... Nf6 $5 {[%cal Rf6e4]}) ({Predecessor:} 9... Nf6 10. Qc2 Qe7 11. Bd3 h6 12. O-O-O g5 13. Bg3 Ng4 14. h4 O-O-O 15. Be2 Nge5 16. Nxe5 Nxe5 {1-0 Vidit,S (2669)-Pantsulaia,L (2563) Wch Blitz Almaty 2022 (15)}) 10. Qc2 {[%emt 0:00:09]} (10. Qxd6 $2 {too greedy.} Qxc3+ 11. Qd2 Qxa1+ $19) (10. Bxd6 O-O-O 11. Rc1 Nf6 $19) 10... Nf6 {[%emt 0:00:10][%cal Of6e4]} 11. Bd3 {[%emt 0:00:03]} (11. Bxd6 $2 {is the wrong capture.} Nxe4 12. Be5 Nxe5 13. Nxe5 Qxc3+ 14. Qxc3 Nxc3 $19) 11... Qc7 {[%emt 0:00:18]} 12. Rd1 {[%emt 0:00:40]} Ng4 {[%emt 0:00:12]} 13. Ng5 {[%emt 0:00:13]} Bd7 {[%emt 0:00:18]} 14. Be2 {[%emt 0:00:03]} Nge5 {[%emt 0:00:02]} 15. Qd2 {[%emt 0:00:13]} f6 {[%emt 0:00:32]} 16. Nf3 {[%emt 0:00:10]} (16. Qxd6 $2 {perishes.} Qxd6 17. Rxd6 fxg5 18. Bxg5 Nf7 $19) 16... Be6 {[%emt 0:00:16]} 17. Qxd6 {[%emt 0:00:23]} Qxd6 {[%emt 0:00:01]} 18. Rxd6 {[%emt 0:00:01]} Ke7 {[%emt 0:00:01]} 19. Rd1 {[%emt 0:00:11]} (19. Nxe5 $5 fxe5 20. Rxc6 {[%mdl 64] Remove Defender} bxc6 21. Bxe5 $11) 19... Rhd8 {[%emt 0:00:09]} (19... Nxc4 {simplifies} 20. Bxc4 Bxc4 21. Bd6+ Kf7) 20. Nxe5 {[%emt 0:00:09]} Nxe5 {[%emt 0:00:01]} 21. Bxe5 {[%emt 0:00:16]} fxe5 {[%emt 0:00:01]} 22. f3 {[%emt 0:00:21]} Rac8 {[%emt 0:00:04]} 23. Kf2 {[%emt 0:00:10]} Rxd1 {[%emt 0:00:25]} 24. Rxd1 $11 {[%emt 0:00:01][%mdl 4096] Endgame KRB-KRB} Rc6 {[%emt 0:00:01]} 25. Rb1 {[%emt 0:00:01]} Bc8 {[%emt 0:00:01]} 26. Bd1 {[%emt 0:00:27]} Ra6 {[%emt 0:00:05]} 27. a4 {[%emt 0:00:01]} g5 {[%emt 0:00:02]} 28. Ke3 {[%emt 0:00:07]} (28. Rb5 $5 {[%cal Rb5c5]}) 28... Rh6 {[%emt 0:00:03] The position is equal.} 29. h3 {[%emt 0:00:04]} Ra6 {[%emt 0:00:31]} 30. Bc2 {[%emt 0:00:11]} h5 {[%emt 0:00:02]} 31. Rd1 {[%emt 0:00:23]} Be6 {[%emt 0:00:10] Against Rd5} 32. Rb1 {[%emt 0:00:01]} Rb6 {[%emt 0:00:40]} 33. Rxb6 {[%emt 0:00:04]} axb6 {[%emt 0:00:01] KB-KB} 34. Bb3 {[%emt 0:00:08]} h4 {[%emt 0:00:02]} 35. Kd3 {[%emt 0:00:04]} Kd6 {[%emt 0:00:05]} 36. Bd1 {[%emt 0:00:08]} Kc7 {[%emt 0:00:08]} 37. Be2 {[%emt 0:00:09]} Bd7 {[%emt 0:00:03]} 38. Bd1 {[%emt 0:00:01]} Kb8 {[%emt 0:00:02]} 39. Kd2 {[%emt 0:00:15]} Be6 {[%emt 0:00:04]} 40. Be2 {[%emt 0:00:05]} Ka7 {[%emt 0:00:10]} 41. Kc1 {[%emt 0:00:02]} Ka6 {[%emt 0:00:01]} 42. Kb2 $1 {[%emt 0:00:01]} Ka5 {[%emt 0:00:01]} 43. Ka3 $1 {[%emt 0:00:00]} Bf7 {[%emt 0:00:02]} 44. Bd3 $1 {[%emt 0:00:02]} Be8 {[%emt 0:00:07]} 45. Bc2 {[%emt 0:00:01]} Bd7 {[%emt 0:00:00]} 46. Bd1 {[%emt 0:00:05]} Be6 {[%emt 0:00:04]} 47. Be2 {[%emt 0:00:01]} Bd7 {[%emt 0:00:01]} (47... Bf7 $5) 48. Bd1 {[%emt 0:00:00]} Be6 {[%emt 0:00:02]} 49. Be2 {[%emt 0:00:01]} Bd7 {[%emt 0:00:02]} 50. Bd1 {Weighted Error Value: White=0.09 (flawless) /Black=0.06 (flawless)} 1/2-1/2

[Event "Superbet Blitz Poland 2023"]
[Site "Warsaw"]
[Date "2023.05.24"]
[Round "5"]
[White "Carlsen, Magnus"]
[Black "Shevchenko, Kirill"]
[Result "1-0"]
[ECO "B76"]
[WhiteElo "2853"]
[BlackElo "2684"]
[Annotator "TA"]
[PlyCount "49"]
[EventDate "2023.05.24"]
[EventType "tourn"]
[EventCountry "POL"]
[SourceTitle "playchess.com"]
[Source "ChessBase"]
[SourceQuality "1"]
[TimeControl "300+2"]

{[%evp 17,49,18,6,27,28,10,28,1,0,0,0,0,0,0,0,0,134,141,144,142,142,139,191,150,369,351,441,441,879,879,1060,885,29987,29988]} 1. e4 {[%emt 0:00:02]} c5 {[%emt 0:00:02]} 2. Nf3 {[%emt 0:00:01]} Nc6 {[%emt 0:00:01]} 3. Nc3 {[%emt 0:00:02]} g6 {[%emt 0:00:11]} 4. d4 {[%emt 0:00:36]} cxd4 {[%emt 0:00:01]} 5. Nxd4 {[%emt 0:00:01]} Bg7 {[%emt 0:00:01]} 6. Be3 {[%emt 0:00:06]} Nf6 {[%emt 0:00:01]} 7. Nb3 {[%emt 0:00:03]} d6 {[%emt 0:00:10]} 8. f3 {[%emt 0:00:05]} O-O {[%emt 0:00:17]} 9. Qd2 {[%emt 0:00:02]} Be6 {[%emt 0:00:24]} 10. O-O-O {[%emt 0:00:03] B76: Sicilian Dragon: Yugoslav Attack, 9 g4 and 9 0-0-0.} Ne5 {[%emt 0:00:25]} 11. Kb1 {[%emt 0:00:17]} Rc8 {[%emt 0:00:03]} 12. h4 {[%emt 0:00:19] White has an edge.} h5 {[%emt 0:00:03][%cal Bh7h5,Bh5g4][%mdl 32] [#]} 13. Be2 $5 $146 {[%emt 0:00:39][%mdl 8] New and interesting.} ({Predecessor:} 13. Nd5 Bxd5 14. exd5 Qc7 15. c3 a5 16. a3 Rb8 17. Bd4 b5 18. Bxe5 dxe5 19. d6 exd6 20. Qxd6 {0-1 Bocina,D (2210)-Grguric,D (2215) CRO-chT3 Zadar 1999 (6)}) 13... a6 {[%emt 0:00:17]} 14. Bd4 {[%emt 0:00:23]} Qc7 {[%emt 0:00:18]} 15. g4 {[%emt 0:00:40]} hxg4 {[%emt 0:00:12]} 16. f4 {[%emt 0:00:01]} Nc6 {[%emt 0:00:53] [#]} (16... Ned7 $11) 17. Bxf6 $1 $16 {[%emt 0:00:02]} Bxf6 {[%emt 0:00:12]} 18. Nd5 {[%emt 0:00:10]} Bxd5 {[%emt 0:00:45]} 19. exd5 {[%emt 0:00:01]} Nd4 {[%emt 0:00:14]} (19... Nb4 $16 {was necessary.}) 20. Bxg4 {[%emt 0:00:23]} Nxb3 {[%emt 0:00:39] This move loses the game for Black.} (20... Nxc2 $2 21. Rc1 $18) (20... Qxc2+ $16 {might work better.} 21. Qxc2 Rxc2) 21. axb3 $18 {[%emt 0:00:01]} a5 {[%emt 0:00:01]} 22. h5 {[%emt 0:00:13][%cal Bh4h5,Bh5g6][%mdl 32] Black is weak on the light squares} a4 {[%emt 0:00:03]} (22... Kg7 $142 23. hxg6 fxg6) 23. hxg6 {[%emt 0:00:12] Active counter play!} axb3 {[%emt 0:00:09]} 24. cxb3 {[%emt 0:00:06] [#] And now Rdg1 would win.} Ra8 {[%emt 0:00:13]} 25. Qh2 {[%emt 0:00:09] Weighted Error Value: White=0.09 (flawless) /Black=0.97} 1-0

[Event "Superbet Blitz Poland 2023"]
[Site "Warsaw"]
[Date "2023.05.24"]
[Round "5"]
[White "Giri, Anish"]
[Black "Deac, Bogdan-Daniel"]
[Result "0-1"]
[ECO "B12"]
[WhiteElo "2768"]
[BlackElo "2700"]
[Annotator "TA"]
[PlyCount "77"]
[EventDate "2023.05.24"]
[EventType "tourn"]
[EventCountry "POL"]
[SourceTitle "playchess.com"]
[Source "ChessBase"]
[SourceQuality "1"]
[TimeControl "300+2"]

{[%evp 10,77,30,26,45,30,28,21,20,14,62,54,64,29,49,51,49,45,64,55,79,79,77,88,77,63,70,73,66,-15,-12,-16,-13,-15,-23,-49,34,0,9,-25,18,-43,0,-104,-115,-98,-12,-15,-16,-74,-59,-38,-55,-47,0,-14,0,-54,0,-30,-8,-8,-1,-133,0,0,0,0,0,-360]} 1. e4 {[%emt 0:00:00]} c6 {[%emt 0:00:02]} 2. d4 {[%emt 0:00:03]} d5 {[%emt 0:00:01]} 3. e5 {[%emt 0:00:01]} Bf5 {[%emt 0:00:02]} 4. Nf3 {[%emt 0:00:00]} e6 {[%emt 0:00:02]} 5. Be2 {[%emt 0:00:01]} Nd7 {[%emt 0:00:06]} 6. O-O {[%emt 0:00:02]} a5 {[%emt 0:00:02] B12: Caro-Kann: Advance Variation.} 7. c3 {[%emt 0:00:13]} a4 {[%emt 0:00:38]} 8. Nbd2 {[%emt 0:00:02]} h6 {[%emt 0:00:12]} 9. Ne1 {[%emt 0:00:01] [#]} h5 $146 {[%emt 0:00:27]} ({Predecessor:} 9... Ne7 10. f4 c5 11. dxc5 Nc6 12. Bd3 Bxc5+ 13. Kh1 Bxd3 14. Nxd3 O-O 15. Nf3 f5 16. exf6 Qxf6 17. Nxc5 Nxc5 {½-½ Buksa,N (2413)-Osmak,I (2418) EU-ch (Women) 21st 2021 (10)}) 10. Ndf3 {[%emt 0:00:17]} Be7 {[%emt 0:00:09]} 11. Bd3 {[%emt 0:00:03]} Nh6 {[%emt 0:01:03]} 12. Bxh6 {[%emt 0:00:04]} Rxh6 {[%emt 0:00:00]} 13. Bxf5 {[%emt 0:00:12]} exf5 {[%emt 0:00:01]} 14. Qc2 {[%emt 0:00:02]} f4 {[%emt 0:00:22]} 15. Qf5 {[%emt 0:01:48]} g5 {[%emt 0:00:02] [#]} 16. h4 $1 {[%emt 0:00:23]} gxh4 {[%emt 0:01:53]} 17. Nd3 {[%emt 0:00:02]} Nf8 $1 {[%emt 0:00:06]} 18. Nxf4 {[%emt 0:00:02]} Qd7 {[%emt 0:00:07]} 19. e6 {[%emt 0:01:12]} (19. Nxh5 $1 $14 O-O-O 20. Qxf7) 19... fxe6 $11 {[%emt 0:00:07]} 20. Qh3 {[%emt 0:00:01][%cal Of3e5]} Bd6 {[%emt 0:00:09]} 21. Nd3 {[%emt 0:00:17][%cal Of1e1]} O-O-O {[%emt 0:00:08]} 22. Rfe1 {[%emt 0:00:07][%cal Oe1e3]} Qg7 {[%emt 0:00:02]} (22... Nh7 $1 $15) 23. Nxh4 {[%emt 0:00:05]} Kb8 {[%emt 0:00:03]} 24. b3 {[%emt 0:00:04]} a3 {[%emt 0:00:00]} 25. b4 {[%emt 0:00:02]} (25. Re3 $11) 25... Qg4 {[%emt 0:00:03]} (25... Nh7 {feels hotter.} 26. b5 cxb5 27. Rab1 Rg8) 26. Qxg4 {[%emt 0:00:09]} (26. Re3 $11) 26... hxg4 $17 {[%emt 0:00:01]} 27. g3 {[%emt 0:00:01] [#]} Nd7 {[%emt 0:00:03]} (27... Nh7 $1 $17) 28. Re3 $11 {[%emt 0:00:08]} Be7 {[%emt 0:00:01]} 29. Kg2 {[%emt 0:00:17]} (29. Rae1 $1 $11) 29... Bxh4 30. gxh4 {[%emt 0:00:01]} Rxh4 {[%emt 0:00:03]} 31. Rxe6 {[%emt 0:00:05][%cal Ob4b5]} Rdh8 {[%emt 0:00:01] ...Rh2+ is the strong threat.} 32. Nf4 $1 {[%emt 0:00:01]} Nb6 {[%emt 0:00:04]} 33. Rae1 {[%emt 0:00:05]} (33. b5 $1 $11) 33... Nc4 {[%emt 0:00:03]} (33... Rh2+ $15 34. Kg3 Nc4) 34. Re8+ {[%emt 0:00:10]} (34. b5 $5 {[%cal Rb5c6]}) 34... Rxe8 {[%emt 0:00:02]} 35. Rxe8+ {[%emt 0:00:00]} Ka7 {[%emt 0:00:01]} 36. Re7 {[%emt 0:00:08] [#]} (36. Kg3 Rh1 37. Re2 (37. Kxg4 Ra1 $19) 37... Nb2 $17) (36. Re6 $1 $11 {remains equal.}) 36... Nd2 {[%emt 0:00:03]} (36... Nd6 $1 $17) 37. Nd3 {[%emt 0:00:04] The position is equal.} ({Of course not} 37. Kg3 Rh1 38. b5 (38. Kxg4 Rg1+ 39. Kf5 Ra1 $17) 38... Kb6 39. bxc6 (39. Kxg4 Ra1 $19) 39... bxc6 $17) 37... Ne4 {[%emt 0:00:04] Hoping for ...Rh3.} (37... Rh3 $5 38. Nc5 $8 Kb8 $11) 38. Nc5 {[%emt 0:00:02]} Nxc5 {[%emt 0:00:01]} 39. dxc5 $2 {[%emt 0:00:04][%mdl 8192] Weighted Error Value: White=0.25 (precise) /Black=0.23 (precise)} (39. bxc5 $11 {and White stays safe.} Rh3 40. Re3 Rxe3 41. fxe3) 0-1

[Event "Superbet Blitz Poland 2023"]
[Site "Warsaw"]
[Date "2023.05.24"]
[Round "5"]
[White "Aronian, Levon"]
[Black "So, Wesley"]
[Result "0-1"]
[ECO "C50"]
[WhiteElo "2745"]
[BlackElo "2760"]
[Annotator "TA"]
[PlyCount "82"]
[EventDate "2023.05.24"]
[EventType "tourn"]
[EventCountry "POL"]
[SourceTitle "playchess.com"]
[Source "ChessBase"]
[SourceQuality "1"]
[TimeControl "300+2"]

{[%evp 9,82,5,8,0,0,8,1,0,22,10,18,10,34,24,28,43,39,40,34,47,41,0,0,0,0,0,0,0,16,0,0,0,10,4,8,-1,-6,-26,-25,-21,-20,-25,-20,-22,-4,-9,-5,-45,0,0,0,0,0,0,0,0,0,-35,-39,-32,-31,-131,0,-23,0,-254,-197,-164,-163,-29992,-29993,-29993,-29994,-29994,-634]} 1. e4 {[%emt 0:00:01]} e5 {[%emt 0:00:01]} 2. Nf3 {[%emt 0:00:02]} Nc6 {[%emt 0:00:01]} 3. Bc4 {[%emt 0:00:02]} Bc5 {[%emt 0:00:02]} 4. O-O {[%emt 0:00:04]} Nf6 {[%emt 0:00:01]} 5. Nc3 {[%emt 0:00:03]} (5. d3 h6 6. c3 d6 7. Nbd2 a5 8. Re1 O-O 9. Nf1 Ba7 10. Ng3 Be6 11. Bxe6 fxe6 12. Be3 Bxe3 13. Rxe3 a4 14. d4 Qe8 15. Qd3 {1-0 Aronian,L (2785)-So,W (2778) Chess.com Rapid Wk5 KO 2022 (2.1)}) 5... d6 {[%emt 0:00:07]} 6. Na4 {[%emt 0:00:03] C50: Hungarian Defence and Giuoco Pianissimo.} Bb6 {[%emt 0:00:18]} 7. d3 {[%emt 0:00:02]} Na5 {[%emt 0:00:07] 7...h6 gains popularity.} 8. Bb3 {[%emt 0:00:02] The position is equal.} h6 {[%emt 0:00:08] [#]} 9. c3 $146 {[%emt 0:00:17]} ({Predecessor:} 9. h3 Nxb3 10. Nxb6 axb6 11. cxb3 O-O 12. b4 Re8 13. b3 Nh7 14. d4 exd4 15. Qxd4 {0-1 Lugovskoy,M (2443)-Zakaryan,D (2407) South FR-ch Maikop 2018 (9)}) 9... Nxb3 {[%emt 0:00:04]} 10. axb3 {[%emt 0:00:02]} Bg4 {[%emt 0:00:10]} 11. h3 {[%emt 0:00:04]} Bh5 {[%emt 0:00:02]} 12. g4 {[%emt 0:00:19] Strongly threatening Nxb6.} Bg6 {[%emt 0:00:02]} 13. Nxb6 {[%emt 0:00:14]} axb6 {[%emt 0:00:01]} 14. Rxa8 {[%emt 0:00:01]} Qxa8 {[%emt 0:00:01]} 15. Nh2 {[%emt 0:00:01]} O-O {[%emt 0:00:53]} 16. f4 {[%emt 0:00:01]} exf4 {[%emt 0:00:01]} 17. Bxf4 {[%emt 0:00:02]} Nd7 {[%emt 0:00:10]} 18. Nf3 {[%emt 0:00:01]} Re8 {[%emt 0:00:16]} 19. Nd4 {[%emt 0:00:12]} Qd8 {[%emt 0:00:07]} 20. Nf5 {[%emt 0:00:26]} Nc5 {[%emt 0:00:04]} 21. b4 {[%emt 0:00:50]} Ne6 {[%emt 0:00:02]} 22. Qf3 {[%emt 0:00:01] [#]} d5 $1 {[%emt 0:00:22]} 23. exd5 {[%emt 0:00:53]} (23. e5 Bxf5) 23... Nxf4 {[%emt 0:00:12]} 24. Qxf4 {[%emt 0:00:01]} Qxd5 {[%emt 0:00:02]} 25. d4 {[%emt 0:00:14]} c6 {[%emt 0:00:18]} 26. Ng3 {[%emt 0:00:28]} Qb3 {[%emt 0:00:18]} 27. Qd2 {[%emt 0:00:21]} (27. Rf2 {is interesting.} Re1+ 28. Kh2 Qe6 29. Qb8+) 27... b5 {[%emt 0:00:09]} 28. h4 {[%emt 0:00:15]} f6 {[%emt 0:00:01]} (28... Qe6 $5 {[%cal Re6g4]} 29. Qd1 Qe3+ 30. Kg2 Bd3 $11) 29. Kh2 {[%emt 0:00:09]} Bf7 {[%emt 0:00:25]} 30. Rf2 {[%emt 0:00:12]} Qe6 {[%emt 0:00:15]} 31. Qf4 {[%emt 0:00:02]} Qd5 {[%emt 0:00:13]} 32. Nf5 {[%emt 0:00:15]} Re4 {[%emt 0:00:20]} 33. Qb8+ {[%emt 0:00:10]} Kh7 {[%emt 0:00:01]} 34. Qg3 {[%emt 0:00:13]} Re1 {[%emt 0:00:05][%csl Gd5][%cal Re1h1]} 35. Rg2 {[%emt 0:00:05] [#]} ({White should play} 35. Qf3 $1 $15) 35... Re4 $40 {[%emt 0:00:26][%mdl 128] Black attacks. Black is more active.} (35... Qe4 $1 $17 {Hoping for ...Bd5.} 36. g5 (36. Nd6 $2 Qb1 $19) 36... fxg5 37. hxg5 (37. Nd6 $2 Qb1 $19) 37... Bd5 38. g6+ Kh8 39. Qb8+ Bg8) 36. Qc7 {[%emt 0:00:01]} Qe6 {[%emt 0:00:05] ...h5 is the strong threat.} (36... h5 {is more complex.} 37. Nd6 Re3 38. Nxf7 Qe4) 37. Qxb7 $2 {[%emt 0:00:03][%mdl 8192]} (37. Nd6 $11 {and White has nothing to worry.} Rxg4 38. Rxg4 (38. Nxf7 {is a self mate.} Rxh4+ 39. Kg3 Rh3+ 40. Kf4 Qe3+ 41. Kf5 Rf3+ 42. Kg4 f5+ 43. Kh5 Rh3#) 38... Qxg4 39. Nxf7) 37... h5 {[%emt 0:00:08]} 38. Qc7 {[%emt 0:00:02]} hxg4 {[%emt 0:00:05]} 39. Nd6 {[%emt 0:00:02] [#]} (39. Ng3 $19) 39... g3+ $1 {[%emt 0:00:02][%mdl 576] Discovered Attack. Black mates.} 40. Rxg3 {[%emt 0:00:01]} Rxh4+ {[%emt 0:00:01]} 41. Kg2 {[%emt 0:00:03]} Qe2+ {[%emt 0:00:01] Weighted Error Value: White=0.40/Black=0.13 (very precise)} 0-1